fUSD/lending_fUSD_20250329
["ID","MTS","AMOUNT","RATE_DAILY","PERIOD"]
[356800448,1743222640092,-7721.12326432,0.00015,2]
[356800601,1743222642966,-990.39214911,0.00015,2]
[356800606,1743222643132,-14473.16027847,0.00015,2]
[356800607,1743222643143,-8853.70217947,0.00015,2]
[356800608,1743222643155,-380.09194999,0.00015,2]
[356800618,1743222645116,-527.2466018,0.00015,2]
[356800624,1743222645788,-496.302152,0.00015,2]
[356800625,1743222645803,-4313.10153716,0.00015,2]
[356800626,1743222645816,-1684.5624741,0.00015,2]
[356800627,1743222645828,-11487.40386403,0.00015,2]
[356800628,1743222645839,-348.95445286,0.00015,2]
[356800629,1743222645854,-6136.8892724,0.00015,2]
[356800630,1743222645902,-864.53248379,0.00015,2]
[356800631,1743222646019,-5510.1542467,0.00015,2]
[356800632,1743222646031,-313.06330969,0.00015,2]
[356800633,1743222646046,-2322.6826014,0.00015,2]
[356800634,1743222646077,-279.0414,0.00015,2]
[356800635,1743222646091,-8731.48722339,0.00015,2]
[356800944,1743222686519,-968.51658176,0.000148,2]
[356800945,1743222702832,199.74805,0.0001455,2]
[356800946,1743222709460,592.23,0.00013076,2]
[356800947,1743222730677,434.9709691,0.00014703,2]
[356800948,1743222737738,3843.36,0.00014603,2]
[356800949,1743222747887,199.7480501,0.0001455,2]
[356800950,1743222750920,4273.35,0.00014603,2]
[356800951,1743222781845,-200.0,0.000148,2]
[356800952,1743222782024,150.57,0.00014625,2]
[356800953,1743222782265,150.57,0.0001469,2]
[356800954,1743222782499,150.57,0.00014755,2]
[356800955,1743222784789,-150.57,0.000148,2]
[356800956,1743222785836,-551.88251824,0.000148,2]
[356800957,1743222859807,280.34,0.00014051,2]
[356800959,1743222908129,170.07,0.00014057,2]
[356800960,1743222924153,202.07,0.00014057,2]
[356800961,1743222934234,-156.7554,0.000148,2]
[356800962,1743222934257,-193.2446,0.000148,2]
[356800963,1743222934605,152.53,0.00013699,2]
[356800965,1743222941414,25895.81,0.00014057,2]
[356800967,1743222975440,257.89,0.00014063,2]
[356800968,1743223003554,184.73,0.00014611,2]
[356800969,1743223011532,150.0,0.00014063,2]
[356800970,1743223028475,160.621019,7.945e-05,2]
[356800971,1743223044968,774.16,0.00014063,2]
[356800972,1743223060605,3018.8,0.00014072,2]
[356800973,1743223078701,304.29,0.00014065,2]
[356800974,1743223127797,23900.0,0.00014058,2]
[356800975,1743223129087,200.0,0.00014058,2]
[356800976,1743223217885,3690.41,0.00014066,2]
[356800977,1743223230801,200.0,0.00014066,2]
[356800978,1743223251923,500.0,0.0001409,2]
[356800979,1743223294229,1000.0,0.0001409,2]
[356800980,1743223376416,5861.22,0.0001407,2]
[356800981,1743223392294,1079.11,0.0001407,2]
[356800982,1743223489141,300.0,0.00014074,2]
[356800983,1743223505419,308.18,0.00014074,2]
[356800984,1743223531519,162.6,0.00014078,2]
[356800987,1743223561419,4685.89,0.00014086,2]
[356800988,1743223620898,6440.29,0.00014239,2]
[356800990,1743223640589,550.15,0.00014126,2]
[356801034,1743223653844,500.0,0.00014126,2]
[356801035,1743223669912,2751.0,0.00014126,2]
[356801036,1743223674174,250.0,0.00014126,2]
[356801037,1743223681700,168.52,0.00014533,2]
[356801038,1743223696931,-304.34922042,0.000148,2]
[356801046,1743223724520,2449.63,0.00014083,2]
[356801047,1743223731892,45688.01,0.00014092,2]
[356801060,1743223785247,31400.57,0.00014102,2]
[356801065,1743223832033,-54.41187192,0.000148,2]
[356801066,1743223832044,-150.57,0.0001482,2]
[356801067,1743223832054,-358.76109233,0.0001485,2]
[356801068,1743223832064,-150.57,0.00014885,2]
[356801069,1743223832074,-10.36703575,0.00014899,2]
[356801070,1743223832087,-139.63296425,0.00014899,2]
[356801071,1743223832097,-512.9985,0.000149,2]
[356801072,1743223832107,-210.7681,0.000149,2]
[356801073,1743223832117,-1272.0357,0.000149,2]
[356801074,1743223832130,-1000.0,0.000149,2]
[356801075,1743223832140,-41.37459707,0.000149,2]
[356801076,1743223832152,-228.12210293,0.000149,2]
[356801077,1743223832162,-1980.62561669,0.000149,2]
[356801078,1743223832174,-396.3812676,0.000149,2]
[356801079,1743223832186,-1379.19539474,0.000149,2]
[356801080,1743223832199,-22.27152097,0.000149,2]
[356801081,1743223832208,-160.07046933,0.000149,2]
[356801082,1743223832218,-358.76109233,0.000149,2]
[356801083,1743223832228,-150.57,0.0001495,2]
[356801084,1743223832237,-502.0,0.00014959,2]
[356801085,1743223832247,-156.53919189,0.00014973,2]
[356801086,1743223832256,-155.39835958,0.00014973,2]
[356801087,1743223832266,-237.81339502,0.00014973,2]
[356801088,1743223832276,-156.57597088,0.00014973,2]
[356801089,1743223832288,-343.42402912,0.00014973,2]
[356801090,1743223832298,-145.14980811,0.0001499,2]
[356801091,1743223832310,-4183.49970561,0.0001499,2]
[356801092,1743223832455,-2434.4702332,0.00014998,2]
[356801093,1743223832471,-365.7581974,0.00014998,2]
[356801094,1743223832480,-500.0,0.00014999,2]
[356801095,1743223832490,-80.37460237,0.00014999,2]
[356801096,1743223832502,-419.62539763,0.00014999,2]
[356801097,1743223832512,-500.0,0.00014999,2]
[356801098,1743223832521,-500.0,0.00014999,2]
[356801099,1743223832531,-500.0,0.00014999,2]
[356801100,1743223832540,-500.0,0.00014999,2]
[356801101,1743223832550,-500.0,0.00014999,2]
[356801102,1743223832559,-500.0,0.00014999,2]
[356801103,1743223832569,-500.0,0.00014999,2]
[356801104,1743223832578,-500.0,0.00014999,2]
[356801105,1743223832588,-500.0,0.00014999,2]
[356801106,1743223832600,-500.0,0.00014999,2]
[356801107,1743223832610,-421.4911407,0.00014999,2]
[356801108,1743223832619,-350.0,0.00014999,2]
[356801109,1743223832629,-300.0,0.00014999,2]
[356801110,1743223832638,-482.44064481,0.00014999,2]
[356801111,1743223832650,-183.55935519,0.00014999,2]
[356801112,1743223832660,-681.0,0.00015,2]
[356801113,1743223832670,-93.44480519,0.00015,2]
[356801114,1743223832684,-140711.60197545,0.00015,2]
[356801115,1743223832694,-60365.30944971,0.00015,2]
[356801116,1743223832705,-1073.90425003,0.00015,2]
[356801117,1743223832724,-3336.06246916,0.00015,2]
[356801118,1743223832735,-1121.64177466,0.00015,2]
[356801120,1743223832746,-6617.25393517,0.00015,2]
[356801123,1743223832768,-16439.82846372,0.00015,2]
[356801125,1743223832783,-1124.49855846,0.00015,2]
[356801127,1743223832795,-388.23371062,0.00015,2]
[356801141,1743223834228,678.01,0.00014131,2]
[356801147,1743223837975,-4172.09099041,0.00015,2]
[356801148,1743223837987,-9563.2,0.00015,2]
[356801149,1743223838215,-3211.91999948,0.00015,2]
[356801150,1743223838231,-3979.7328063,0.00015,2]
[356801151,1743223838247,-2559.33589369,0.00015,2]
[356801152,1743223838258,-433.49178807,0.00015,2]
[356801153,1743223838270,-4107.39949026,0.00015,2]
[356801154,1743223838282,-661.29448133,0.00015,2]
[356801155,1743223838301,-278.35824588,0.00015,2]
[356801163,1743223840171,-602.76063078,0.00015,2]
[356801164,1743223840226,-500.0,0.00015,2]
[356801165,1743223840282,-647.93106815,0.00015,2]
[356801166,1743223840294,-905.0,0.00015,2]
[356801167,1743223840339,-1232.07597583,0.00015,2]
[356801168,1743223840441,-0.01149664,0.00015,2]
[356801169,1743223840452,-8918.34800089,0.00015,2]
[356801170,1743223840464,-1039.88659613,0.00015,2]
[356801171,1743223840475,-4686.67174274,0.00015,2]
[356801172,1743223840495,-3737.66968128,0.00015,2]
[356801186,1743223843321,-155.926,0.000148,2]
[356801187,1743223843330,-335.4645782,0.00015,2]
[356801188,1743223843342,-5681.31679619,0.00015,2]
[356801190,1743223845348,-11477.80729397,0.00015,2]
[356801191,1743223845359,-6597.416152,0.00015,2]
[356801193,1743223846176,-646.85139686,0.00015,2]
[356801194,1743223846188,-31785.95628094,0.00015,2]
[356801195,1743223846343,-502.00081645,0.00015,2]
[356801200,1743223872887,299.6220751,0.0001455,2]
[356801201,1743223880880,434.9709691,0.00014566,2]
[356801202,1743223964056,442.138173,0.00014725,2]
[356801203,1743224030623,617.66,0.0001299,2]
[356801204,1743224148473,617.037651,0.00014789,2]
[356801205,1743224167988,3249.255409,7.945e-05,2]
[356801206,1743224181043,309.56,0.00014175,2]
[356801207,1743224238994,23900.0,0.00014175,2]
[356801209,1743224405143,169.79725243,0.00014789,2]
[356801210,1743224448683,200.0,0.00014138,2]
[356801211,1743224577076,1000.0,0.00014138,2]
[356801212,1743224578633,200.0,0.00014138,2]
[356801213,1743224677788,250.0,0.00014183,2]
[356801214,1743224762532,169.79725242,0.00014789,2]
[356801215,1743224779903,164.76,0.00014626,2]
[356801259,1743225032287,-320.09861389,0.000148,2]
[356801260,1743225032343,-103.99330274,0.000148,2]
[356801261,1743225032354,-150.0,0.0001487,2]
[356801262,1743225032364,-1280.31755736,0.00014884,2]
[356801263,1743225032377,-402.91371413,0.00014884,2]
[356801264,1743225032400,-314.86872851,0.00014884,2]
[356801265,1743225032410,-300.0,0.00014889,2]
[356801266,1743225032421,-200.0,0.00014889,2]
[356801267,1743225032431,-15013.55731379,0.0001489,2]
[356801268,1743225032441,-500.0,0.00014899,2]
[356801269,1743225032451,-500.0,0.00014899,2]
[356801270,1743225032461,-353.85784012,0.00014899,2]
[356801271,1743225032470,-573.665,0.00014899,2]
[356801272,1743225032480,-150.0,0.00014899,2]
[356801273,1743225032490,-1000.0,0.000149,2]
[356801274,1743225032499,-272.9911,0.000149,2]
[356801275,1743225032510,-48982.255,0.000149,2]
[356801276,1743225032520,-2888.5093,0.000149,2]
[356801277,1743225032529,-42600.201,0.000149,2]
[356801278,1743225032539,-160.07046933,0.000149,2]
[356801279,1743225032549,-1733.76624404,0.000149,2]
[356801280,1743225032559,-2090.28631047,0.000149,2]
[356801281,1743225032569,-1852.42,0.00014931,2]
[356801282,1743225032578,-162.14699852,0.00014973,2]
[356801283,1743225032588,-373.87851191,0.00014973,2]
[356801284,1743225032598,-500.0,0.00014973,2]
[356801285,1743225032607,-262.83777734,0.00014973,2]
[356801286,1743225032617,-254.01,0.0001498,2]
[356801287,1743225032630,-300.0,0.00014999,2]
[356801288,1743225032640,-711.15211855,0.00014999,2]
[356801289,1743225032650,-9999.99,0.00014999,2]
[356801290,1743225032660,-12049.91,0.00014999,2]
[356801291,1743225032670,-9999.99,0.00014999,2]
[356801292,1743225032679,-606.0,0.00015,2]
[356801293,1743225032689,-668366.34957796,0.00015,2]
[356801295,1743225032709,-382.23193864,0.00015,2]
[356801297,1743225032721,-1480.13947014,0.00015,2]
[356801299,1743225032732,-614.72573488,0.00015,2]
[356801301,1743225032744,-210866.24442776,0.00015,2]
[356801302,1743225032754,-200.0,0.00015,2]
[356801304,1743225032764,-1923.9443274,0.00015005,2]
[356801306,1743225032773,-289.0560745,0.00015005,2]
[356801307,1743225032783,-150.57,0.00015015,2]
[356801309,1743225032793,-2231.14,0.00015024,2]
[356801310,1743225032803,-150.57,0.0001508,2]
[356801311,1743225032812,-150.57,0.00015145,2]
[356801312,1743225032821,-200.0,0.0001515,2]
[356801313,1743225032831,-151.85,0.00015161,2]
[356801315,1743225032841,-879.16,0.00015197,2]
[356801316,1743225032851,-300.0,0.00015209,2]
[356801317,1743225032861,-150.57,0.0001521,2]
[356801318,1743225032870,-151.85,0.00015216,2]
[356801320,1743225032880,-879.16,0.00015229,2]
[356801321,1743225032889,-533.098,0.00015254,2]
[356801323,1743225032899,-533.098,0.00015254,2]
[356801324,1743225032909,-533.098,0.00015254,2]
[356801326,1743225032919,-533.098,0.00015254,2]
[356801327,1743225032929,-533.098,0.00015254,2]
[356801328,1743225032939,-533.098,0.00015254,2]
[356801329,1743225032954,-533.098,0.00015254,2]
[356801330,1743225032964,-533.098,0.00015254,2]
[356801331,1743225032974,-533.098,0.00015254,2]
[356801332,1743225032984,-533.098,0.00015254,2]
[356801333,1743225032994,-617.66,0.00015254,2]
[356801334,1743225033003,-879.16,0.00015261,2]
[356801335,1743225033014,-151.85,0.00015271,2]
[356801336,1743225033024,-879.16,0.00015293,2]
[356801337,1743225033034,-162.11,0.000153,2]
[356801338,1743225033044,-879.16,0.00015325,2]
[356801339,1743225033054,-151.85,0.00015326,2]
[356801340,1743225033065,-879.16,0.00015357,2]
[356801341,1743225033075,-151.85,0.00015381,2]
[356801342,1743225033086,-879.16,0.00015389,2]
[356801343,1743225033096,-879.16,0.00015421,2]
[356801344,1743225033106,-151.85,0.00015437,2]
[356801345,1743225033116,-879.16,0.00015453,2]
[356801346,1743225033126,-879.16,0.00015485,2]
[356801347,1743225033136,-151.85,0.00015492,2]
[356801348,1743225033146,-879.16,0.00015517,2]
[356801349,1743225033161,-151.85,0.00015547,2]
[356801350,1743225033171,-879.16,0.00015549,2]
[356801351,1743225033180,-879.16,0.00015581,2]
[356801352,1743225033190,-500.0,0.000156,2]
[356801353,1743225033200,-151.85,0.00015602,2]
[356801354,1743225033210,-879.16,0.00015613,2]
[356801355,1743225033220,-879.16,0.00015645,2]
[356801356,1743225033229,-151.85,0.00015657,2]
[356801357,1743225033240,-879.16,0.00015677,2]
[356801358,1743225033251,-879.16,0.00015709,2]
[356801359,1743225033261,-151.85,0.00015712,2]
[356801360,1743225033406,-879.16,0.00015741,2]
[356801361,1743225033418,-151.85,0.00015767,2]
[356801362,1743225033429,-879.16,0.00015773,2]
[356801363,1743225033439,-879.16,0.00015805,2]
[356801364,1743225033449,-1000.0,0.00015905,2]
[356801365,1743225033460,-309.56,0.00015947,2]
[356801366,1743225033469,-255.0,0.00016031,2]
[356801367,1743225033479,-3496.81988465,0.0001622,2]
[356801368,1743225033490,-164.76,0.0001704,2]
[356801369,1743225033499,-617.66,0.00017518,2]
[356801370,1743225033510,-1733.76624398,0.00017617,2]
[356801371,1743225033519,-2090.28631047,0.00017617,2]
[356801372,1743225033529,-1000.0,0.00017673,2]
[356801373,1743225033539,-309.56,0.00017718,2]
[356801374,1743225033549,-645.29941615,0.00018,2]
[356801375,1743225033558,-174.44,0.000186,2]
[356801376,1743225033568,-234.01669973,0.000189,2]
[356801377,1743225033578,-524.98691891,0.00018973,2]
[356801378,1743225033589,-627.18513906,0.00018973,2]
[356801379,1743225033599,-310.08367057,0.00018999,2]
[356801380,1743225033609,-19081.58630815,0.00019,2]
[356801381,1743225033619,-86872.37419901,0.00019,2]
[356801382,1743225033632,-74352.4916061,0.00019,2]
[356801383,1743225033641,-292.16961688,0.00019,2]
[356801384,1743225033652,-629.61061284,0.00019,2]
[356801385,1743225033662,-154.026854,0.00019,2]
[356801386,1743225033672,-151.0,0.00019,2]
[356801387,1743225033683,-215.356012,0.00019,2]
[356801388,1743225033693,-663.879,0.00019,2]
[356801389,1743225033703,-663.879,0.00019,2]
[356801390,1743225033714,-663.879,0.00019,2]
[356801391,1743225033724,-663.879,0.00019,2]
[356801392,1743225033734,-1000.0,0.0001944,2]
[356801393,1743225033746,-309.56,0.0001949,2]
[356801394,1743225033756,-617.66,0.00019782,2]
[356801395,1743225033766,-2000.0,0.0002,4]
[356801396,1743225033776,-152.48,0.0002,2]
[356801397,1743225033786,-152.48,0.0002,2]
[356801398,1743225033795,-152.48,0.0002,2]
[356801399,1743225033804,-152.48,0.0002,2]
[356801400,1743225033814,-152.48,0.00020167,2]
[356801401,1743225033823,-2047.243,0.00020177,2]
[356801402,1743225033833,-643.0,0.00020177,2]
[356801403,1743225033843,-1282.0,0.00020177,2]
[356801404,1743225033853,-575.149,0.00020177,2]
[356801405,1743225033863,-1428.664,0.00020177,2]
[356801406,1743225033872,-1171.642,0.00020177,2]
[356801407,1743225033881,-792.0,0.00020177,2]
[356801408,1743225033891,-911.445,0.00020177,2]
[356801409,1743225033900,-4107.346,0.00020177,2]
[356801410,1743225033910,-544.525,0.00020177,2]
[356801411,1743225033920,-1438.901,0.00020177,2]
[356801412,1743225033930,-1733.76624398,0.00020334,2]
[356801413,1743225033957,-2090.28631047,0.00020334,2]
[356801414,1743225033968,-1000.0,0.00020452,2]
[356801415,1743225033979,-663.879,0.00020797,2]
[356801416,1743225033990,-663.879,0.00020797,2]
[356801417,1743225034001,-30000.0,0.00020797,2]
[356801418,1743225034012,-1998.1,0.00020837,2]
[356801419,1743225034022,-629.83043926,0.00021079,2]
[356801420,1743225034034,-170.07,0.00021086,2]
[356801421,1743225034045,-1000.0,0.00021207,2]
[356801422,1743225034055,-309.56,0.00021262,2]
[356801423,1743225034066,-150.0,0.00021917,2]
[356801424,1743225034076,-617.66,0.00022046,2]
[356801425,1743225034086,-1733.76624398,0.00023051,2]
[356801426,1743225034096,-2090.28631047,0.00023051,2]
[356801427,1743225034106,-2039.0,0.00023177,2]
[356801428,1743225034116,-643.0,0.00023177,2]
[356801429,1743225034126,-1282.0,0.00023177,2]
[356801430,1743225034136,-150.0,0.00023287,2]
[356801431,1743225034147,-234.01669973,0.00023733,2]
[356801432,1743225034157,-168.4,0.00023836,2]
[356801433,1743225034167,-617.66,0.00024309,2]
[356801434,1743225034177,-150.0,0.00024657,2]
[356801435,1743225034187,-192.52,0.00024712,30]
[356801436,1743225034197,-152.48,0.0002479,2]
[356801437,1743225034208,-152.48,0.0002479,2]
[356801438,1743225034218,-152.48,0.0002479,2]
[356801439,1743225034228,-207963.69505029,0.000248,2]
[356801440,1743225034242,-35000.0,0.000248,2]
[356801441,1743225034256,-96094.1773373,0.000248,2]
[356801442,1743225034268,-700.0,0.000248,2]
[356801444,1743225038214,-500.0,0.000248,2]
[356801599,1743225040529,-1545.88684746,0.000248,2]
[356801606,1743225040585,-3414.77973955,0.000248,2]
[356801624,1743225040748,-3249.255409,0.000248,2]
[356801631,1743225040805,-558.89350208,0.000248,2]
[356801674,1743225041217,-259.4993,0.000248,2]
[356801860,1743225043424,-220797.65426432,0.000248,2]
[356801862,1743225043434,-663.879,0.000248,7]
[356801864,1743225043444,-663.879,0.000248,7]
[356801866,1743225043454,-1408.0,0.00024849,2]
[356801868,1743225043464,-706.0,0.00024849,2]
[356801870,1743225043473,-161.05636172,0.00024873,2]
[356801872,1743225043483,-300.93467343,0.00024873,2]
[356801874,1743225043493,-501.15841812,0.00024873,2]
[356801876,1743225043503,-500.0,0.00024873,2]
[356801878,1743225043512,-501.07535998,0.00024873,2]
[356801880,1743225043522,-213.52194083,0.00024873,2]
[356801882,1743225043532,-313.29668321,0.00024873,2]
[356801884,1743225043542,-501.4577232,0.00024873,2]
[356801886,1743225043551,-604.73647479,0.00024873,2]
[356801888,1743225043561,-649.89835374,0.00024873,2]
[356801890,1743225043570,-501.42576307,0.00024873,2]
[356801892,1743225043579,-502.02201683,0.00024873,2]
[356801894,1743225043589,-152.48,0.0002489,2]
[356801896,1743225043598,-152.48,0.0002489,2]
[356801898,1743225043608,-152.48,0.0002489,2]
[356801900,1743225043618,-555884.341109,0.000249,2]
[356801902,1743225043627,-663.879,0.000249,7]
[356801904,1743225043637,-663.879,0.000249,7]
[356801905,1743225043646,-250.0,0.00025,2]
[356801907,1743225043655,-154.0,0.000251,120]
[356801909,1743225043665,-317.74535465,0.00025733,2]
[356801911,1743225043675,-420.8797949,0.00025733,2]
[356801913,1743225043684,-151.47380948,0.00025733,2]
[356801915,1743225043694,-151.4749578,0.00025733,2]
[356801917,1743225043703,-161.24468913,0.00025733,2]
[356801919,1743225043712,-152.48,0.00025758,2]
[356801921,1743225043722,-1733.76624398,0.00025768,2]
[356801923,1743225043732,-2090.28631047,0.00025768,2]
[356801925,1743225043742,-150.0,0.00026027,2]
[356801927,1743225043751,-495.067,0.00026177,2]
[356801929,1743225043760,-1142.498,0.00026177,2]
[356801931,1743225043771,-617.66,0.00026573,2]
[356801933,1743225043780,-187.9,0.00026849,2]
[356801935,1743225043790,-150.94,0.00026849,2]
[356801937,1743225043799,-154.92,0.00026849,2]
[356801939,1743225043809,-300.0,0.00027,2]
[356801941,1743225043818,-401.971173,0.00027,2]
[356801943,1743225043827,-19168.4255555,0.00027387,2]
[356801945,1743225043838,-150.70343429,0.00027397,2]
[356801947,1743225043847,-150.0,0.00027397,2]
[356801949,1743225043856,-500.0,0.00027397,2]
[356801950,1743225043865,-500.0,0.00027397,2]
[356801952,1743225043875,-500.0,0.00027397,2]
[356801953,1743225043884,-150.0,0.00027397,2]
[356801954,1743225043893,-150.0,0.00027397,2]
[356801955,1743225043903,-500.0,0.00027397,2]
[356801957,1743225043912,-500.0,0.00027397,2]
[356801959,1743225043922,-500.0,0.00027397,2]
[356801961,1743225043932,-150.0,0.00027397,2]
[356801962,1743225043942,-500.0,0.00027397,2]
[356801964,1743225043955,-150.0,0.00027397,2]
[356801966,1743225043964,-150.0,0.00027397,2]
[356801968,1743225043974,-153.26996686,0.00027397,2]
[356801970,1743225043983,-500.0,0.00027397,2]
[356801972,1743225043993,-1222.94605926,0.00027397,30]
[356801974,1743225044003,-318.95,0.00027397,2]
[356801975,1743225044013,-500.0,0.00027424,2]
[356801976,1743225044023,-500.0,0.00027424,2]
[356801977,1743225044032,-500.0,0.00027424,2]
[356801978,1743225044042,-150.0,0.00027424,2]
[356801979,1743225044052,-154.81807187,0.00027424,2]
[356801980,1743225044062,-701.75056623,0.00027424,2]
[356801981,1743225044072,-500.0,0.00027424,2]
[356801982,1743225044082,-500.0,0.00027424,2]
[356801983,1743225044091,-150.0,0.00027424,2]
[356801984,1743225044102,-500.0,0.00027424,2]
[356801985,1743225044111,-150.0,0.00027424,2]
[356801986,1743225044121,-500.0,0.00027424,2]
[356801987,1743225044132,-500.0,0.00027452,2]
[356801988,1743225044141,-500.0,0.00027452,2]
[356801989,1743225044150,-500.0,0.00027452,2]
[356801990,1743225044160,-179.09456544,0.00027452,2]
[356801991,1743225044170,-500.0,0.00027452,2]
[356801992,1743225044179,-500.0,0.00027452,2]
[356801993,1743225044188,-150.0,0.00027452,2]
[356801994,1743225044197,-500.0,0.00027452,2]
[356801995,1743225044206,-202.06184317,0.00027452,2]
[356801996,1743225044216,-703.35685283,0.00027452,2]
[356801997,1743225044226,-500.0,0.00027479,2]
[356801998,1743225044235,-500.0,0.00027479,2]
[356801999,1743225044245,-500.0,0.00027479,2]
[356802000,1743225044255,-500.0,0.00027479,2]
[356802001,1743225044264,-500.0,0.00027479,2]
[356802002,1743225044273,-150.0,0.00027479,2]
[356802003,1743225044283,-500.0,0.00027479,2]
[356802004,1743225044293,-500.0,0.00027507,2]
[356802005,1743225044303,-500.0,0.00027507,2]
[356802006,1743225044312,-500.0,0.00027507,2]
[356802007,1743225044322,-592.29490799,0.00027507,2]
[356802008,1743225044331,-500.0,0.00027507,2]
[356802009,1743225044342,-291.76984376,0.00027507,2]
[356802010,1743225044351,-500.0,0.00027507,2]
[356802011,1743225044361,-500.0,0.00027534,2]
[356802012,1743225044372,-500.0,0.00027534,2]
[356802013,1743225044382,-500.0,0.00027534,2]
[356802014,1743225044392,-861.04436206,0.00027534,2]
[356802015,1743225044402,-500.0,0.00027534,2]
[356802016,1743225044411,-997.52299888,0.00027561,2]
[356802018,1743225044421,-500.0,0.00027561,2]
[356802020,1743225044431,-500.0,0.00027561,2]
[356802022,1743225044440,-887.65715025,0.00027561,2]
[356802023,1743225044450,-500.0,0.00027589,2]
[356802024,1743225044459,-500.0,0.00027589,2]
[356802025,1743225044469,-500.0,0.00027616,2]
[356802026,1743225044479,-500.0,0.00027616,2]
[356802027,1743225044489,-500.0,0.00027644,2]
[356802028,1743225044499,-500.0,0.00027644,2]
[356802029,1743225044510,-500.0,0.00027671,2]
[356802030,1743225044519,-999.52004083,0.00027671,2]
[356802031,1743225044530,-500.0,0.00027698,2]
[356802032,1743225044540,-500.0,0.00027726,2]
[356802033,1743225044549,-500.0,0.00027753,2]
[356802034,1743225044559,-500.0,0.00027781,2]
[356802035,1743225044569,-500.0,0.00027808,2]
[356802036,1743225044579,-500.0,0.00027835,2]
[356802037,1743225044588,-500.0,0.00027863,2]
[356802038,1743225044597,-500.0,0.0002789,2]
[356802039,1743225044607,-500.0,0.00027918,2]
[356802040,1743225044616,-500.0,0.00027945,2]
[356802041,1743225044626,-500.0,0.00027972,2]
[356802042,1743225044635,-500.0,0.00028,2]
[356802043,1743225044644,-19168.4255555,0.00028017,2]
[356802044,1743225044654,-500.0,0.00028027,2]
[356802045,1743225044663,-500.0,0.00028055,2]
[356802046,1743225044672,-500.0,0.00028082,2]
[356802047,1743225044682,-500.0,0.00028109,2]
[356802048,1743225044691,-500.0,0.00028137,2]
[356802049,1743225044700,-500.0,0.00028164,2]
[356802050,1743225044709,-500.0,0.00028192,2]
[356802051,1743225044719,-500.0,0.00028219,2]
[356802052,1743225044728,-500.0,0.00028246,2]
[356802053,1743225044738,-500.0,0.00028274,2]
[356802054,1743225044748,-822.45087675,0.00028301,2]
[356802055,1743225044758,-1733.76624398,0.00028484,2]
[356802056,1743225044768,-2090.28631047,0.00028484,2]
[356802057,1743225044778,-234.01669973,0.00028567,2]
[356802058,1743225044787,-353.59,0.00028671,2]
[356802059,1743225044797,-150.0,0.00028767,2]
[356802060,1743225044912,-663.879,0.00028767,7]
[356802061,1743225044923,-663.879,0.00028767,7]
[356802062,1743225044933,-318.95,0.00028767,2]
[356802063,1743225044943,-162.97,0.00028795,2]
[356802064,1743225044956,-617.66,0.00028837,2]
[356802065,1743225044966,-350.0,0.00029,2]
[356802066,1743225044975,-151.34,0.00029041,2]
[356802067,1743225044984,-303.66,0.00029041,2]
[356802068,1743225044994,-150.0,0.00029041,2]
[356802070,1743225045003,-150.64,0.00029041,2]